fUST/lending_fUST_20250614
["ID","MTS","AMOUNT","RATE_DAILY","PERIOD"]
[365698557,1749833444882,-151.0,0.00021817,2]
[365698558,1749833444892,-151.0,0.00021817,2]
[365698559,1749833444901,-151.0,0.00021817,2]
[365698560,1749833444995,-320.223891,0.00021817,2]
[365698561,1749833445005,-320.223891,0.00021817,2]
[365698562,1749833445015,-1750.456,0.0002182,2]
[365698563,1749833445024,-151.0,0.0002182,2]
[365698564,1749833445035,-151.0,0.0002182,2]
[365698565,1749833445044,-151.0,0.0002182,2]
[365698566,1749833445053,-197.126828,0.0002182,2]
[365698567,1749833445064,-197.126828,0.0002182,2]
[365698568,1749833445073,-151.0,0.0002182,2]
[365698569,1749833445083,-410.22396404,0.00021871,2]
[365698570,1749833445092,-1815.222872,0.00021875,2]
[365698571,1749833445102,-1592.0,0.00021877,2]
[365698572,1749833445112,-1980.0,0.00021882,2]
[365698573,1749833445121,-13883.88373054,0.000219,2]
[365698574,1749833445131,-153.789681,0.000219,2]
[365698575,1749833445140,-151.0,0.000219,2]
[365698576,1749833445150,-151.0,0.000219,2]
[365698577,1749833445160,-151.0,0.000219,2]
[365698578,1749833445169,-151.0,0.000219,2]
[365698579,1749833445180,-151.0,0.000219,2]
[365698580,1749833445189,-151.0,0.000219,2]
[365698581,1749833445199,-1112.463022,0.000219,2]
[365698582,1749833445209,-1112.463022,0.000219,2]
[365698583,1749833445221,-980.55356568,0.000219,2]
[365698584,1749833445230,-13310.07562572,0.0002191,2]
[365698585,1749833445240,-2243.0,0.00021915,7]
[365698586,1749833445250,-151.0,0.00021915,2]
[365698587,1749833445260,-151.0,0.00021915,2]
[365698588,1749833445270,-332.656579,0.00021915,2]
[365698589,1749833445280,-571.649021,0.00021915,2]
[365698590,1749833445293,-571.649021,0.00021915,2]
[365698591,1749833445306,-218.755735,0.00021915,2]
[365698592,1749833445316,-218.755735,0.00021915,2]
[365698593,1749833445326,-200.0,0.00021917,2]
[365698594,1749833445336,-162.134399,0.00021917,2]
[365698595,1749833445346,-151.0,0.00021917,2]
[365698596,1749833445356,-151.0,0.00021917,2]
[365698597,1749833445366,-151.0,0.00021917,2]
[365698598,1749833445376,-460.0,0.00021917,4]
[365698599,1749833445386,-460.0,0.00021917,4]
[365698600,1749833445395,-151.0,0.00021917,2]
[365698601,1749833445405,-293.143038,0.00021917,2]
[365698602,1749833445414,-293.143038,0.00021917,2]
[365698603,1749833445424,-151.0,0.00021917,2]
[365698604,1749833445433,-151.0,0.00021917,2]
[365698605,1749833445443,-190.0,0.00021917,4]
[365698606,1749833445452,-390.0,0.00021917,4]
[365698607,1749833445462,-151.0,0.00021917,2]
[365698608,1749833445472,-460.0,0.00021917,4]
[365698609,1749833445481,-211.42558,0.00021917,2]
[365698610,1749833445491,-460.0,0.00021917,4]
[365698611,1749833445501,-211.42558,0.00021917,2]
[365698612,1749833445511,-151.0,0.00021917,2]
[365698613,1749833445520,-460.0,0.00021917,4]
[365698614,1749833445529,-571.51,0.00021917,2]
[365698615,1749833445541,-460.0,0.00021917,4]
[365698616,1749833445551,-460.0,0.00021917,4]
[365698617,1749833445560,-460.0,0.00021917,4]
[365698618,1749833445570,-460.0,0.00021917,4]
[365698619,1749833445581,-151.0,0.00021917,2]
[365698620,1749833445590,-460.0,0.00021917,4]
[365698621,1749833445600,-151.0,0.00021917,2]
[365698622,1749833445609,-460.0,0.00021917,4]
[365698623,1749833445619,-460.0,0.00021917,4]
[365698624,1749833445629,-151.0,0.00021917,2]
[365698625,1749833445638,-151.0,0.00021917,2]
[365698626,1749833445647,-160.0,0.00021917,4]
[365698627,1749833445657,-300.0,0.00021917,4]
[365698628,1749833445666,-460.0,0.00021917,4]
[365698629,1749833445675,-460.0,0.00021917,4]
[365698630,1749833445685,-460.0,0.00021917,4]
[365698631,1749833445694,-460.0,0.00021917,4]
[365698632,1749833445703,-652.725357,0.00021917,2]
[365698633,1749833445713,-652.725357,0.00021917,2]
[365698634,1749833445722,-151.0,0.00021917,2]
[365698635,1749833445731,-151.0,0.00021917,2]
[365698636,1749833445740,-460.0,0.00021917,4]
[365698637,1749833445749,-151.0,0.00021917,2]
[365698638,1749833445759,-460.0,0.00021917,4]
[365698639,1749833445769,-460.0,0.00021917,4]
[365698640,1749833445778,-5281.573223,0.00021917,2]
[365698642,1749833445789,-5281.573223,0.00021917,2]
[365698643,1749833445798,-151.0,0.00021917,2]
[365698644,1749833445807,-989.87,0.00021917,4]
[365698645,1749833445817,-151.0,0.00021917,2]
[365698646,1749833445826,-460.0,0.00021917,4]
[365698647,1749833445837,-460.0,0.00021917,4]
[365698648,1749833445847,-558.05,0.00021917,4]
[365698649,1749833445856,-460.0,0.00021917,4]
[365698650,1749833445865,-2138.31,0.00021917,4]
[365698651,1749833445875,-151.0,0.00021917,2]
[365698652,1749833445884,-460.0,0.00021917,4]
[365698653,1749833445894,-460.0,0.00021917,4]
[365698654,1749833445903,-3370.31,0.00021917,4]
[365698656,1749833445912,-460.0,0.00021917,4]
[365698658,1749833445922,-1559.91,0.00021917,4]
[365698660,1749833445932,-440.0,0.00021917,4]
[365698661,1749833445941,-151.0,0.00021917,2]
[365698662,1749833445950,-460.0,0.00021917,4]
[365698663,1749833445959,-460.0,0.00021917,4]
[365698664,1749833445969,-1530.69,0.00021917,4]
[365698665,1749833445978,-1029.42,0.00021917,4]
[365698666,1749833445988,-197.126828,0.00021917,2]
[365698667,1749833445997,-151.0,0.00021917,2]
[365698668,1749833446006,-197.126828,0.00021917,2]
[365698669,1749833446016,-460.0,0.00021917,4]
[365698671,1749833446025,-3495.93,0.00021917,4]
[365698672,1749833446036,-151.0,0.00021917,2]
[365698673,1749833446045,-460.0,0.00021917,4]
[365698674,1749833446055,-460.0,0.00021917,4]
[365698675,1749833446064,-460.0,0.00021917,4]
[365698676,1749833446073,-153.829744,0.00021917,2]
[365698677,1749833446082,-151.0,0.00021917,2]
[365698678,1749833446092,-928.78,0.00021917,4]
[365698679,1749833446101,-460.0,0.00021917,4]
[365698680,1749833446111,-3307.17,0.00021917,4]
[365698681,1749833446120,-280.0,0.00021917,4]
[365698682,1749833446129,-460.0,0.00021917,4]
[365698683,1749833446138,-460.0,0.00021917,4]
[365698684,1749833446147,-460.0,0.00021917,4]
[365698685,1749833446156,-460.0,0.00021917,4]
[365698686,1749833446166,-682.55,0.00021917,4]
[365698687,1749833446175,-1335.31,0.00021917,4]
[365698688,1749833446184,-690.73,0.00021917,4]
[365698689,1749833446194,-2492.52,0.00021917,4]
[365698690,1749833446204,-607.23,0.00021917,4]
[365698691,1749833446213,-460.0,0.00021917,4]
[365698692,1749833446222,-500.0,0.00021917,4]
[365698693,1749833446232,-460.0,0.00021917,4]
[365698694,1749833446242,-460.0,0.00021917,4]
[365698695,1749833446251,-460.0,0.00021917,4]
[365698696,1749833446260,-695.62,0.00021917,4]
[365698697,1749833446269,-286.32212784,0.00021917,4]
[365698698,1749833446279,-500.0,0.00021917,2]
[365698699,1749833446290,-151.0,0.00021917,2]
[365698700,1749833446302,-460.0,0.00021917,4]
[365698701,1749833446312,-460.0,0.00021917,4]
[365698702,1749833446321,-460.0,0.00021917,4]
[365698703,1749833446330,-460.0,0.00021917,4]
[365698704,1749833446340,-460.0,0.00021917,4]
[365698705,1749833446349,-1509.07,0.00021917,4]
[365698706,1749833446358,-5758.02,0.00021917,4]
[365698707,1749833446368,-320.223891,0.00021917,2]
[365698708,1749833446378,-2626.16,0.00021917,4]
[365698709,1749833446388,-460.0,0.00021917,4]
[365698710,1749833446398,-460.0,0.00021917,4]
[365698711,1749833446407,-320.223891,0.00021917,2]
[365698712,1749833446417,-2655.11,0.00021917,4]
[365698713,1749833446426,-596.17564883,0.00021917,4]
[365698714,1749833446436,-936.26,0.00021917,4]
[365698715,1749833446445,-460.0,0.00021917,4]
[365698716,1749833446455,-639.4,0.00021917,4]
[365698717,1749833446464,-460.0,0.00021917,4]
[365698718,1749833446473,-460.0,0.00021917,4]
[365698719,1749833446482,-212.895851,0.00021917,2]
[365698720,1749833446491,-151.0,0.00021917,2]
[365698721,1749833446502,-460.0,0.00021917,4]
[365698722,1749833446511,-212.895851,0.00021917,2]
[365698723,1749833446520,-151.0,0.00021918,2]
[365698724,1749833446529,-151.0,0.00021918,2]
[365698725,1749833446539,-153.0,0.00021918,2]
[365698726,1749833446548,-153.0,0.00021918,2]
[365698727,1749833446557,-153.0,0.00021918,2]
[365698728,1749833446568,-153.0,0.00021918,2]
[365698729,1749833446577,-153.0,0.00021918,2]
[365698730,1749833446587,-153.0,0.00021918,2]
[365698731,1749833446596,-153.0,0.00021918,2]
[365698732,1749833446605,-153.0,0.00021918,2]
[365698733,1749833446615,-153.0,0.00021918,2]
[365698734,1749833446624,-153.0,0.00021918,2]
[365698735,1749833446633,-153.0,0.00021918,2]
[365698736,1749833446643,-153.0,0.00021918,2]
[365698737,1749833446652,-153.0,0.00021918,2]
[365698738,1749833446661,-1000.0,0.00021921,2]
[365698739,1749833446671,-1882.38611826,0.0002193,2]
[365698740,1749833446681,-330.0,0.00021937,2]
[365698741,1749833446690,-500.0,0.00021973,2]
[365698742,1749833446699,-500.0,0.00021973,2]
[365698743,1749833446708,-367.89843496,0.00021973,2]
[365698744,1749833446718,-502.21576639,0.00021973,2]
[365698745,1749833446727,-541.34304117,0.00021973,2]
[365698746,1749833446736,-500.0,0.00021973,2]
[365698747,1749833446745,-500.0,0.00021973,2]
[365698748,1749833446755,-503.23811144,0.00021973,2]
[365698749,1749833446764,-500.0,0.00021973,2]
[365698750,1749833446775,-183.35058372,0.00021973,2]
[365698751,1749833446786,-500.0,0.00021973,2]
[365698752,1749833446795,-500.0,0.00021973,2]
[365698753,1749833446804,-500.0,0.00021973,2]
[365698754,1749833446814,-507.97057501,0.00021973,2]
[365698755,1749833446823,-500.0,0.00021973,2]
[365698756,1749833446832,-500.0,0.00021973,2]
[365698757,1749833446841,-500.0,0.00021973,2]
[365698758,1749833446850,-500.0,0.00021973,2]
[365698759,1749833446859,-287.65116742,0.00021973,2]
[365698760,1749833446869,-239.46320745,0.00021973,2]
[365698761,1749833446878,-500.0,0.00021973,2]
[365698762,1749833446887,-508.9242103,0.00021973,2]
[365698763,1749833446896,-500.0,0.00021973,2]
[365698764,1749833446906,-160.07782674,0.00021973,2]
[365698765,1749833446916,-501.46874494,0.00021973,2]
[365698766,1749833446926,-500.0,0.00021973,2]
[365698767,1749833446935,-500.0,0.00021973,2]
[365698768,1749833446945,-505.47568824,0.00021973,2]
[365698769,1749833446954,-500.0,0.00021973,2]
[365698770,1749833447045,-500.0,0.00021973,2]
[365698771,1749833447055,-500.0,0.00021973,2]
[365698772,1749833447064,-500.0,0.00021973,2]
[365698773,1749833447074,-507.6131257,0.00021973,2]
[365698774,1749833447083,-503.20737064,0.00021973,2]
[365698775,1749833447092,-539.29664791,0.00021973,2]
[365698776,1749833447102,-500.0,0.00021973,2]
[365698777,1749833447112,-503.18092134,0.00021973,2]
[365698778,1749833447122,-151.898224,0.00021973,7]
[365698779,1749833447132,-151.0,0.00021973,7]
[365698780,1749833447141,-1112.463022,0.00021973,7]
[365698781,1749833447151,-1112.463022,0.00021973,7]
[365698782,1749833447160,-151.0,0.00021977,7]
[365698783,1749833447170,-151.0,0.00021977,7]
[365698784,1749833447179,-151.0,0.00021977,7]
[365698785,1749833447189,-406.39511791,0.00021985,2]
[365698786,1749833447199,-72862.17894695,0.00021998,2]
[365698787,1749833447208,-151.0,0.00021998,7]
[365698788,1749833447217,-212.895851,0.00021998,7]
[365698789,1749833447228,-212.895851,0.00021998,7]
[365698790,1749833447238,-151.0,0.00021998,7]
[365698791,1749833447247,-10765.88673879,0.00022,2]
[365698792,1749833447257,-7582.50378393,0.00022,2]
[365698793,1749833447267,-76293.9245168,0.00022,2]
[365698794,1749833447277,-151.0,0.00022,7]
[365698795,1749833447287,-151.0,0.00022,7]
[365698796,1749833447297,-154.9278,0.00022,7]
[365698797,1749833447310,-154.9278,0.00022,7]
[365698798,1749833447320,-151.0,0.00022,7]
[365698799,1749833447330,-151.0,0.00022,7]
[365698800,1749833447339,-293.143038,0.00022,7]
[365698801,1749833447350,-293.143038,0.00022,7]
[365698802,1749833447360,-151.0,0.00022,7]
[365698803,1749833447370,-151.0,0.00022,7]
[365698804,1749833447381,-211.42558,0.00022,7]
[365698805,1749833447391,-211.42558,0.00022,7]
[365698806,1749833447401,-151.0,0.00022,7]
[365698807,1749833447410,-151.0,0.00022,7]
[365698808,1749833447419,-151.0,0.00022,7]
[365698809,1749833447429,-151.0,0.00022,7]
[365698810,1749833447438,-332.656579,0.00022,7]
[365698811,1749833447448,-151.0,0.00022,7]
[365698812,1749833447457,-161.276549,0.00022,7]
[365698813,1749833447467,-151.0,0.00022,7]
[365698814,1749833447476,-151.0,0.00022,7]
[365698815,1749833447485,-151.0,0.00022,7]
[365698816,1749833447495,-571.649021,0.00022,7]
[365698817,1749833447504,-571.649021,0.00022,7]
[365698818,1749833447514,-151.0,0.00022,7]
[365698819,1749833447524,-151.0,0.00022,7]
[365698820,1749833447535,-652.725357,0.00022,7]
[365698821,1749833447545,-652.725357,0.00022,7]
[365698822,1749833447556,-151.0,0.00022,7]
[365698823,1749833447565,-151.0,0.00022,7]
[365698824,1749833447576,-151.0,0.00022,7]
[365698825,1749833447585,-218.755735,0.00022,7]
[365698826,1749833447595,-151.736753,0.00022,7]
[365698827,1749833447604,-218.755735,0.00022,7]
[365698828,1749833447613,-5281.573223,0.00022,2]
[365698829,1749833447623,-5281.573223,0.00022,2]
[365698830,1749833447632,-151.0,0.00022,7]
[365698831,1749833447641,-151.0,0.00022,7]
[365698832,1749833447651,-1112.463022,0.00022,7]
[365698833,1749833447660,-1112.463022,0.00022,7]
[365698834,1749833447669,-213.24139183,0.00022,7]
[365698835,1749833447678,-153.7149,0.00022,7]
[365698836,1749833447687,-171.0,0.00022,2]
[365698837,1749833447697,-151.0,0.00022,7]
[365698838,1749833447707,-197.126828,0.00022,7]
[365698839,1749833447716,-151.0,0.00022,7]
[365698840,1749833447725,-197.126828,0.00022,7]
[365698841,1749833447735,-151.0,0.00022,7]
[365698842,1749833447744,-151.0,0.00022,7]
[365698843,1749833447753,-12531.02669373,0.00022,7]
[365698844,1749833447763,-151.0,0.00022,7]
[365698845,1749833447772,-320.223891,0.00022,7]
[365698846,1749833447782,-320.223891,0.00022,7]
[365698847,1749833447792,-160.0,0.00022,7]
[365698848,1749833447801,-212.895851,0.00022,7]
[365698849,1749833447810,-160.0,0.00022,2]
[365698850,1749833447820,-212.895851,0.00022,7]
[365698851,1749833447829,-151.0,0.00022,7]
[365698852,1749833447838,-2243.0,0.00022019,7]
[365698853,1749833447847,-420.0,0.00022021,2]
[365698854,1749833447856,-500.0,0.0002206,2]
[365698855,1749833447866,-213.24139183,0.00022106,2]
[365698856,1749833447875,-160.0,0.00022106,2]
[365698857,1749833447884,-160.0,0.00022106,2]
[365698858,1749833447893,-229.78555783,0.00022106,2]
[365698859,1749833447902,-160.0,0.00022106,2]
[365698860,1749833447911,-160.0,0.00022106,2]
[365698861,1749833447922,-844.94977992,0.00022106,2]
[365698862,1749833447931,-835.28007164,0.00022106,2]
[365698863,1749833447941,-160.0,0.00022118,2]
[365698864,1749833447951,-2243.0,0.00022124,7]
[365698865,1749833447960,-386.0,0.00022129,2]
[365698866,1749833447970,-500.0,0.0002219,4]
[365698867,1749833447979,-151.0,0.00022191,7]
[365698868,1749833447988,-151.0,0.00022191,7]
[365698869,1749833447997,-151.0,0.00022191,7]
[365698870,1749833448007,-151.0,0.00022191,7]
[365698871,1749833448017,-151.0,0.00022191,7]
[365698872,1749833448026,-151.0,0.00022191,7]
[365698873,1749833448036,-440.0,0.00022191,4]
[365698874,1749833448045,-460.0,0.00022191,4]
[365698875,1749833448055,-154.571329,0.00022191,7]
[365698876,1749833448064,-293.143038,0.00022191,7]
[365698877,1749833448073,-293.143038,0.00022191,7]
[365698878,1749833448083,-151.0,0.00022191,7]
[365698879,1749833448092,-151.0,0.00022191,7]
[365698880,1749833448102,-460.0,0.00022191,4]
[365698881,1749833448111,-460.0,0.00022191,4]
[365698882,1749833448121,-211.42558,0.00022191,7]
[365698883,1749833448130,-211.42558,0.00022191,7]
[365698884,1749833448140,-151.0,0.00022191,7]
[365698885,1749833448149,-152.277517,0.00022191,7]
[365698886,1749833448158,-151.0,0.00022191,7]
[365698887,1749833448168,-571.51,0.00022191,2]
[365698888,1749833448177,-460.0,0.00022191,4]
[365698889,1749833448187,-460.0,0.00022191,4]
[365698890,1749833448197,-460.0,0.00022191,4]
[365698891,1749833448207,-494.60559962,0.00022191,4]
[365698892,1749833448217,-151.0,0.00022191,7]
[365698893,1749833448227,-332.656579,0.00022191,7]
[365698894,1749833448237,-251.36504178,0.00022191,4]
[365698895,1749833448247,-580.0,0.00022191,4]
[365698896,1749833448257,-460.0,0.00022191,4]
[365698897,1749833448267,-151.0,0.00022191,7]
[365698898,1749833448277,-151.0,0.00022191,7]
[365698899,1749833448289,-526.9,0.00022191,4]
[365698900,1749833448299,-460.0,0.00022191,4]
[365698901,1749833448310,-571.649021,0.00022191,7]
[365698902,1749833448319,-571.649021,0.00022191,7]
[365698903,1749833448330,-427.41408605,0.00022191,4]
[365698904,1749833448339,-460.0,0.00022191,4]
[365698905,1749833448350,-652.725357,0.00022191,7]
[365698906,1749833448359,-652.725357,0.00022191,7]
[365698907,1749833448369,-151.0,0.00022191,7]
[365698908,1749833448380,-151.0,0.00022191,7]
[365698909,1749833448391,-151.0,0.00022191,7]
[365698910,1749833448401,-440.0,0.00022191,4]
[365698911,1749833448411,-218.755735,0.00022191,7]
[365698912,1749833448421,-460.0,0.00022191,4]
[365698913,1749833448431,-218.755735,0.00022191,7]
[365698914,1749833448441,-460.0,0.00022191,4]
[365698915,1749833448450,-5281.573223,0.00022191,2]
[365698916,1749833448460,-5281.573223,0.00022191,2]
[365698917,1749833448470,-989.87,0.00022191,4]
[365698918,1749833448480,-151.0,0.00022191,7]
[365698919,1749833448490,-460.0,0.00022191,4]
[365698920,1749833448500,-460.0,0.00022191,4]
[365698921,1749833448509,-1112.463022,0.00022191,7]
[365698922,1749833448519,-558.05,0.00022191,4]
[365698923,1749833448528,-460.0,0.00022191,4]
[365698924,1749833448539,-1112.463022,0.00022191,7]
[365698925,1749833448548,-2138.31,0.00022191,4]
[365698926,1749833448558,-460.0,0.00022191,4]
[365698927,1749833448569,-460.0,0.00022191,4]
[365698928,1749833448578,-3370.31,0.00022191,4]
[365698929,1749833448587,-400.0,0.00022191,4]
[365698930,1749833448597,-1559.91,0.00022191,4]
[365698931,1749833448607,-151.0,0.00022191,7]
[365698932,1749833448616,-460.0,0.00022191,4]
[365698933,1749833448626,-460.0,0.00022191,4]
[365698934,1749833448636,-1530.69,0.00022191,4]
[365698935,1749833448646,-1029.42,0.00022191,4]
[365698936,1749833448655,-197.126828,0.00022191,7]
[365698937,1749833448664,-151.0,0.00022191,7]
[365698938,1749833448675,-197.126828,0.00022191,7]
[365698939,1749833448685,-460.0,0.00022191,4]
[365698940,1749833448694,-3495.93,0.00022191,4]
[365698941,1749833448703,-155.192921,0.00022191,7]
[365698942,1749833448713,-460.0,0.00022191,4]
[365698943,1749833448722,-460.0,0.00022191,4]
[365698944,1749833448731,-327.90953021,0.00022191,4]
[365698945,1749833448741,-151.0,0.00022191,7]
[365698946,1749833448751,-928.78,0.00022191,4]
[365698947,1749833448762,-460.0,0.00022191,4]
[365698948,1749833448772,-3307.17,0.00022191,4]
[365698949,1749833448782,-460.0,0.00022191,4]
[365698950,1749833448791,-460.0,0.00022191,4]
[365698951,1749833448801,-460.0,0.00022191,4]
[365698952,1749833448811,-682.55,0.00022191,4]
[365698953,1749833448820,-1335.31,0.00022191,4]
[365698954,1749833448829,-690.73,0.00022191,4]
[365698955,1749833448839,-2492.52,0.00022191,4]
[365698956,1749833448848,-607.23,0.00022191,4]
[365698957,1749833448858,-330.0,0.00022191,4]
[365698958,1749833448867,-500.0,0.00022191,4]
[365698959,1749833448962,-460.0,0.00022191,4]
[365698960,1749833448972,-460.0,0.00022191,4]
[365698961,1749833448981,-460.0,0.00022191,4]
[365698962,1749833448991,-695.62,0.00022191,4]
[365698963,1749833449001,-211.88449559,0.00022191,7]
[365698964,1749833449011,-460.0,0.00022191,4]
[365698965,1749833449021,-439.51262156,0.00022191,4]
[365698966,1749833449032,-460.0,0.00022191,4]
[365698967,1749833449042,-460.0,0.00022191,4]
[365698968,1749833449054,-460.0,0.00022191,4]
[365698969,1749833449064,-1509.07,0.00022191,4]
[365698970,1749833449074,-5758.02,0.00022191,4]
[365698971,1749833449084,-2626.16,0.00022191,4]
[365698972,1749833449094,-320.223891,0.00022191,7]
[365698973,1749833449104,-460.0,0.00022191,4]
[365698974,1749833449115,-460.0,0.00022191,4]
[365698975,1749833449125,-320.223891,0.00022191,7]
[365698976,1749833449135,-2655.11,0.00022191,4]
[365698977,1749833449146,-936.26,0.00022191,4]
[365698978,1749833449156,-460.0,0.00022191,4]
[365698979,1749833449165,-639.4,0.00022191,4]
[365698980,1749833449175,-460.0,0.00022191,4]
[365698981,1749833449185,-460.0,0.00022191,4]
[365698982,1749833449195,-212.895851,0.00022191,7]
[365698983,1749833449205,-460.0,0.00022191,4]
[365698984,1749833449214,-212.895851,0.00022191,7]
[365698985,1749833449224,-545.0,0.00022193,2]
[365698986,1749833449233,-270.184217,0.00022193,7]
[365698987,1749833449243,-151.0,0.000222,7]
[365698988,1749833449253,-152.20385,0.000222,7]
[365698989,1749833449263,-1980.0,0.0002222,2]
[365698990,1749833449272,-151.0,0.00022223,7]
[365698991,1749833449282,-160.0,0.00022223,7]
[365698992,1749833449292,-2243.0,0.00022229,7]
[365698993,1749833449304,-742.14,0.00022244,2]
[365698994,1749833449315,-151.0,0.00022252,7]
[365698995,1749833449324,-151.0,0.00022252,7]
[365698996,1749833449333,-205.5872,0.00022252,7]
[365698997,1749833449343,-151.0,0.000223,8]
[365698998,1749833449354,-151.0,0.00022313,2]
[365698999,1749833449364,-5000.0,0.00022313,2]
[365699000,1749833449374,-151.0,0.00022317,7]
[365699001,1749833449385,-154.9278,0.00022317,7]
[365699002,1749833449394,-154.9278,0.00022317,7]
[365699003,1749833449404,-2243.0,0.00022334,7]
[365699004,1749833449413,-742.14,0.00022344,4]
[365699005,1749833449423,-2009.83410739,0.0002235,2]
[365699006,1749833449433,-1980.0,0.00022362,2]
[365699007,1749833449442,-1592.0,0.00022394,2]
[365699008,1749833449452,-151.0,0.000224,8]
[365699009,1749833449463,-1592.0,0.00022402,2]
[365699010,1749833449472,-2636.00069,0.00022403,3]
[365699011,1749833449482,-167.40932512,0.00022421,2]
[365699012,1749833449492,-2243.0,0.00022438,7]
[365699013,1749833449501,-742.14,0.00022444,2]
[365699014,1749833449511,-1892.28,0.00022455,3]
[365699015,1749833449520,-946.14,0.00022455,3]
[365699016,1749833449529,-473.06,0.00022455,3]
[365699017,1749833449540,-170.26,0.00022464,2]
[365699018,1749833449550,-151.0,0.00022465,7]
[365699019,1749833449563,-151.0,0.00022465,7]
[365699020,1749833449572,-151.0,0.00022465,7]
[365699021,1749833449582,-151.0,0.00022465,7]
[365699022,1749833449592,-151.0,0.00022465,7]
[365699023,1749833449601,-460.0,0.00022465,4]
[365699024,1749833449612,-293.143038,0.00022465,7]
[365699025,1749833449621,-293.143038,0.00022465,7]
[365699026,1749833449630,-151.0,0.00022465,7]
[365699027,1749833449639,-151.0,0.00022465,7]
[365699028,1749833449649,-460.0,0.00022465,4]
[365699029,1749833449658,-211.42558,0.00022465,7]
[365699030,1749833449668,-211.42558,0.00022465,7]
[365699031,1749833449677,-151.0,0.00022465,7]
[365699032,1749833449686,-151.0,0.00022465,7]
[365699033,1749833449696,-571.51,0.00022465,2]
[365699034,1749833449705,-460.0,0.00022465,4]
[365699035,1749833449715,-300.0,0.00022465,4]
[365699036,1749833449724,-460.0,0.00022465,4]
[365699037,1749833449733,-151.0,0.00022465,7]
[365699038,1749833449743,-332.656579,0.00022465,7]
[365699039,1749833449752,-460.0,0.00022465,4]
[365699040,1749833449761,-151.0,0.00022465,7]
[365699041,1749833449771,-151.0,0.00022465,7]
[365699042,1749833449779,-460.0,0.00022465,4]
[365699043,1749833449789,-571.649021,0.00022465,7]
[365699044,1749833449799,-571.649021,0.00022465,7]
[365699045,1749833449809,-322.20250663,0.00022465,4]
[365699046,1749833449817,-652.725357,0.00022465,7]
[365699047,1749833449827,-652.725357,0.00022465,7]
[365699048,1749833449836,-151.0,0.00022465,7]
[365699049,1749833449845,-151.0,0.00022465,7]
[365699050,1749833449854,-151.0,0.00022465,7]
[365699051,1749833449864,-218.755735,0.00022465,7]
[365699052,1749833449874,-460.0,0.00022465,4]
[365699053,1749833449883,-218.755735,0.00022465,7]
[365699054,1749833449892,-318.3678971,0.00022465,4]
[365699055,1749833449901,-5281.573223,0.00022465,2]
[365699056,1749833449910,-5281.573223,0.00022465,2]
[365699057,1749833449920,-989.87,0.00022465,4]
[365699058,1749833449929,-156.747823,0.00022465,7]
[365699059,1749833449939,-275.15592971,0.00022465,4]
[365699060,1749833449949,-460.0,0.00022465,4]
[365699061,1749833449958,-558.05,0.00022465,4]